bitfinex/quotes_SOLUSD_20230904
["timestamp","ask_amount","ask_price","bid_price","bid_amount"]
[1693863372671,9.92870878,19.333,19.319,55.0]
[1693863375771,1.85970878,19.333,19.319,55.0]
[1693863376274,92.0687,19.344,19.319,55.0]
[1693863376275,2.77600507,19.335,19.321,0.49504519]
[1693863376587,8.067,19.336,19.321,55.0]
[1693863376881,3.0,19.335,19.321,55.0]
[1693863377467,3.0,19.337,19.322,20.0]
[1693863377667,3.0,19.339,19.323,0.79082614]
[1693863377863,3.0,19.339,19.323,55.79082614]
[1693863378071,3.0,19.339,19.324,20.0]
[1693863378268,3.0,19.339,19.325,55.84469052]
[1693863378576,3.0,19.339,19.326,20.0]
[1693863378777,3.0,19.339,19.327,55.0]
[1693863380575,3.0,19.339,19.327,93.24]
[1693863381280,3.0,19.342,19.327,93.24]
[1693863383288,3.0,19.342,19.33,38.24]
[1693863383488,3.0,19.344,19.331,55.0]
[1693863383788,11.064,19.344,19.331,55.0]
[1693863392195,11.064,19.344,19.327,38.24]
[1693863392796,11.064,19.344,19.33,38.24]
[1693863393487,11.064,19.344,19.331,55.0]
[1693863406815,38.24,19.34,19.331,55.0]
[1693863406991,11.066,19.339,19.331,55.0]
[1693863407390,3.0,19.339,19.331,55.0]
[1693863407592,11.066,19.339,19.331,55.0]
[1693863408089,3.0,19.339,19.331,55.0]
[1693863409803,11.066,19.339,19.331,55.0]
[1693863410601,3.0,19.339,19.331,55.0]
[1693863411391,11.066,19.339,19.331,55.0]
[1693863411687,3.0,19.339,19.331,55.0]
[1693863412306,8.067,19.338,19.331,55.0]
[1693863412606,3.0,19.337,19.327,38.24]
[1693863412902,3.0,19.337,19.328,55.0]
[1693863414497,3.0,19.339,19.328,55.0]
[1693863414806,11.066,19.339,19.328,55.0]
[1693863418802,11.066,19.339,19.327,38.24]
[1693863419305,20.0,19.338,19.327,38.24]
[1693863419504,8.068,19.335,19.327,38.24]
[1693863419700,3.0,19.334,19.327,38.24]
[1693863420005,11.068,19.334,19.327,38.24]
[1693863422408,11.068,19.334,19.32,103.6750582]
[1693863422707,11.068,19.334,19.321,1.65884914]
[1693863423395,3.0,19.334,19.321,1.65884914]
[1693863424494,8.068,19.334,19.321,56.65884914]
[1693863424694,3.0,19.333,19.321,56.65884914]
[1693863425607,11.069,19.333,19.321,56.65884914]
[1693863425908,38.24,19.33,19.321,56.65884914]
[1693863427915,0.63785453,19.329,19.321,56.65884914]
[1693863428298,38.24,19.33,19.321,56.65884914]
[1693863428713,0.63422607,19.329,19.321,56.65884914]
[1693863429413,38.24,19.33,19.321,56.65884914]
[1693863431011,8.069,19.332,19.321,56.65884914]
[1693863431203,1.50531402,19.331,19.321,56.65884914]
[1693863432915,8.069,19.331,19.321,56.65884914]
[1693863433310,2.07374899,19.33,19.321,56.65884914]
[1693863433499,46.31,19.33,19.321,56.65884914]
[1693863434013,46.31,19.33,19.321,1.65884914]
[1693863434208,0.62596816,19.329,19.321,1.65884914]
[1693863434507,8.07,19.329,19.321,1.65884914]
[1693863434918,1.04909288,19.328,19.32,76.884]
[1693863435614,9.12009288,19.328,19.316,59.99777247]
[1693863435810,9.12009288,19.328,19.317,21.86133155]
[1693863437012,9.12009288,19.328,19.319,1.86133155]
[1693863437906,9.12009288,19.328,19.318,55.0]
[1693863438105,9.12009288,19.328,19.319,0.68936568]
[1693863439913,9.12009288,19.328,19.318,55.0]
[1693863440419,9.12009288,19.328,19.319,0.54109203]
[1693863442109,9.12009288,19.328,19.318,1.34750046]
[1693863444122,1.04909288,19.328,19.318,1.34750046]
[1693863444324,1.96094495,19.329,19.318,56.34750046]
[1693863447411,10.03094495,19.329,19.318,56.34750046]
[1693863449319,1.96094495,19.329,19.318,56.34750046]
[1693863452131,10.03094495,19.329,19.318,56.34750046]
[1693863461534,1.96094495,19.329,19.318,1.34750046]
[1693863461923,10.03094495,19.329,19.318,1.34750046]
[1693863462827,10.03094495,19.329,19.318,56.34750046]
[1693863463928,1.96094495,19.329,19.318,56.34750046]
[1693863464527,10.03094495,19.329,19.318,56.34750046]
[1693863470648,36.10494495,19.329,19.318,56.34750046]
[1693863471327,36.10494495,19.329,19.318,55.0]
[1693863472946,36.10494495,19.329,19.319,0.53053404]
[1693863473147,36.10494495,19.329,19.318,55.0]
[1693863473543,36.10494495,19.329,19.319,0.53600682]
[1693863474350,36.10494495,19.329,19.318,55.0]
[1693863474647,36.10494495,19.329,19.319,0.80468662]
[1693863475753,20.0,19.328,19.316,38.24]
[1693863476048,3.0,19.324,19.316,38.24]
[1693863476345,8.073,19.322,19.316,38.24]
[1693863476547,3.0,19.321,19.316,38.24]
[1693863477047,8.073,19.322,19.317,55.0]
[1693863477243,8.073,19.323,19.317,55.0]
[1693863477445,3.0,19.322,19.317,55.0]
[1693863480553,8.073,19.323,19.317,55.0]
[1693863483352,8.073,19.323,19.316,38.24]
[1693863483561,1.08819766,19.322,19.306,25.73783689]
[1693863483759,9.16219766,19.322,19.31,56.94461036]
[1693863483958,8.074,19.322,19.31,56.94461036]
[1693863484259,8.074,19.322,19.31,113.85961036]
[1693863485159,27.42200481,19.325,19.31,58.85961036]
[1693863485460,38.24,19.32,19.31,58.85961036]
[1693863485760,8.075,19.319,19.31,58.85961036]
[1693863485958,38.24,19.32,19.31,58.85961036]
[1693863486350,0.63327184,19.319,19.31,58.85961036]
[1693863486546,38.24,19.32,19.31,58.85961036]
[1693863486761,38.24,19.32,19.312,1.94461036]
[1693863487549,46.314,19.32,19.312,1.94461036]
[1693863488150,38.24,19.32,19.312,1.94461036]
[1693863488358,46.314,19.32,19.312,1.94461036]
[1693863488664,38.24,19.32,19.312,1.94461036]
[1693863489447,8.074,19.321,19.312,1.94461036]
[1693863490066,1.33637564,19.325,19.312,1.94461036]
[1693863491662,8.073,19.323,19.312,1.94461036]
[1693863491846,1.33637564,19.322,19.312,1.94461036]
[1693863492265,1.81077138,19.323,19.312,1.94461036]
[1693863493358,9.88377138,19.323,19.312,1.94461036]
[1693863494866,8.073,19.323,19.312,1.94461036]
[1693863498371,1.81077138,19.322,19.312,1.94461036]
[1693863500971,9.88377138,19.322,19.312,1.94461036]
[1693863502073,1.81077138,19.322,19.312,1.94461036]
[1693863502274,8.073,19.323,19.312,1.94461036]
[1693863502572,3.0,19.322,19.312,1.94461036]
[1693863502869,11.073,19.322,19.312,1.94461036]
[1693863503470,3.0,19.321,19.312,1.94461036]
[1693863503660,8.074,19.32,19.312,1.94461036]
[1693863504375,8.074,19.321,19.312,1.94461036]
[1693863504581,3.0,19.32,19.312,1.94461036]
[1693863504774,8.074,19.321,19.312,1.94461036]
[1693863505080,3.0,19.32,19.312,1.94461036]
[1693863505271,8.074,19.321,19.312,1.94461036]
[1693863505583,3.0,19.32,19.312,1.94461036]
[1693863505773,8.074,19.321,19.312,1.94461036]
[1693863506074,3.0,19.32,19.312,1.94461036]
[1693863506265,8.074,19.321,19.312,1.94461036]
[1693863506470,3.0,19.32,19.312,1.94461036]
[1693863506671,8.074,19.321,19.312,1.94461036]
[1693863506874,3.0,19.32,19.312,1.94461036]
[1693863507076,8.074,19.321,19.312,1.94461036]
[1693863507672,38.24,19.32,19.312,1.94461036]
[1693863508379,46.314,19.32,19.312,1.94461036]
[1693863508578,38.24,19.32,19.312,1.94461036]
[1693863509479,0.59617997,19.319,19.312,1.94461036]
[1693863509789,38.24,19.32,19.312,1.94461036]
[1693863510081,0.61874699,19.319,19.312,1.94461036]
[1693863510384,38.24,19.32,19.312,1.94461036]
[1693863510977,0.61874699,19.319,19.312,1.94461036]
[1693863511177,38.24,19.32,19.312,1.94461036]
[1693863511690,46.314,19.32,19.312,1.94461036]
[1693863511987,0.90923173,19.319,19.311,1.94461036]
[1693863512883,0.90923173,19.319,19.311,56.94461036]
[1693863513091,46.314,19.32,19.311,56.94461036]
[1693863515087,72.4,19.32,19.311,1.94461036]
[1693863515264,0.93713431,19.319,19.311,1.94461036]
[1693863515467,8.075,19.318,19.311,1.94461036]
[1693863516782,0.84409721,19.317,19.307,21.94461036]
[1693863517384,0.84409721,19.317,19.307,60.18461036]
[1693863517772,0.84409721,19.317,19.308,55.0]
[1693863517975,8.075,19.318,19.309,1.94461036]
[1693863518474,0.84409721,19.317,19.309,1.94461036]
[1693863519188,1.42246232,19.318,19.309,1.94461036]
[1693863519481,9.49746232,19.318,19.309,1.94461036]
[1693863519885,8.075,19.318,19.309,1.94461036]
[1693863520285,9.49746232,19.319,19.309,1.94461036]
[1693863520597,1.42246232,19.319,19.308,56.94461036]
[1693863521470,9.49646232,19.319,19.308,56.94461036]
[1693863522287,1.42246232,19.319,19.308,56.94461036]
[1693863522988,9.49746232,19.319,19.308,56.94461036]
[1693863523680,9.49746232,19.319,19.308,1.94461036]
[1693863523879,9.49746232,19.319,19.308,56.94461036]
[1693863526294,9.49746232,19.319,19.308,1.94461036]
[1693863530797,8.076,19.315,19.301,1.94461036]
[1693863531881,8.076,19.315,19.301,56.94461036]
[1693863532591,8.076,19.315,19.301,1.94461036]
[1693863532995,38.24,19.31,19.301,1.94461036]
[1693863533192,147.0099,19.316,19.301,1.94461036]
[1693863533398,55.0,19.315,19.301,1.94461036]
[1693863534389,38.24,19.31,19.301,1.94461036]
[1693863534589,38.24,19.31,19.3,26.092]
[1693863534787,20.0,19.309,19.285,1.94461036]
[1693863534987,8.08,19.305,19.288,55.51493553]
[1693863535192,8.08,19.305,19.289,1.94461036]
[1693863535406,38.24,19.3,19.289,1.94461036]
[1693863535697,38.24,19.3,19.289,0.94461036]
[1693863535906,38.24,19.3,19.287,20.94461036]
[1693863536204,38.24,19.3,19.287,0.94461036]
[1693863536390,165.9447,19.299,19.277,0.94461036]
[1693863536700,165.9447,19.299,19.272,0.94461036]
[1693863536701,38.24,19.29,19.272,0.94461036]
[1693863536889,38.24,19.29,19.273,54.01493553]
[1693863537093,38.24,19.29,19.274,0.94461036]
[1693863537492,90.9447,19.289,19.274,20.94461036]
[1693863538405,90.9447,19.289,19.275,20.0]
[1693863538585,90.9447,19.289,19.276,0.94461036]
[1693863539298,90.9447,19.289,19.275,0.94461036]
[1693863539709,90.9447,19.289,19.275,55.94461036]
[1693863539897,90.9447,19.289,19.276,20.0]
[1693863540301,90.9447,19.289,19.274,75.0]
[1693863540490,90.9447,19.289,19.275,20.94461036]
[1693863541007,55.0,19.288,19.275,0.94461036]
[1693863541205,8.64338963,19.287,19.274,75.0]
[1693863541502,38.24,19.28,19.274,75.0]
[1693863541700,38.24,19.28,19.26,38.24]
[1693863541911,38.24,19.28,19.261,65.03482241]
[1693863542509,38.24,19.28,19.262,134.79731026]
[1693863542709,96.5632,19.287,19.27,38.24]
[1693863542897,0.55538963,19.286,19.271,137.87359107]
[1693863543203,38.24,19.29,19.271,275.74718207]
[1693863543806,38.24,19.29,19.271,213.81820136]
[1693863544201,1.55538963,19.289,19.271,213.81820136]
[1693863544588,38.24,19.29,19.271,213.81820136]
[1693863546503,38.24,19.29,19.271,271.62426731]
[1693863547396,1.55538963,19.289,19.271,271.62426731]
[1693863548195,1.55538963,19.293,19.271,271.62426731]
[1693863548606,1.55538963,19.293,19.272,83.54390284]
[1693863548808,1.55538963,19.299,19.273,168.54518277]
[1693863548991,1.55538963,19.299,19.28,38.43]
[1693863549195,1.55538963,19.299,19.281,75.94461036]
[1693863551417,9.63838963,19.299,19.281,75.94461036]
[1693863551808,9.63838963,19.299,19.281,113.43]
[1693863552012,1.55538963,19.299,19.282,0.63777022]
[1693863552715,9.63838963,19.299,19.282,0.63777022]
[1693863553521,9.63838963,19.299,19.281,113.43]
[1693863554026,1.55538963,19.299,19.281,113.43]
[1693863554199,1.55538963,19.299,19.282,0.56716693]
[1693863555316,1.55538963,19.301,19.282,0.56716693]
[1693863556199,1.55538963,19.303,19.282,0.56716693]
[1693863556613,8.081,19.303,19.282,0.56716693]
[1693863556811,1.55538963,19.302,19.282,0.56716693]
[1693863557209,1.55538963,19.308,19.282,0.56716693]
[1693863557514,1.55538963,19.308,19.283,176.1735917]
[1693863557709,1.55538963,19.308,19.284,55.94461036]
[1693863557905,1.55538963,19.308,19.285,103.54390284]
[1693863558219,1.55538963,19.308,19.286,55.94461036]
[1693863558409,1.55538963,19.308,19.288,0.94461036]
[1693863558609,1.55538963,19.309,19.288,55.94461036]
[1693863558811,1.55538963,19.309,19.29,0.94461036]
[1693863559112,1.55538963,19.309,19.29,94.37461036]
[1693863559414,1.55538963,19.313,19.292,0.94461036]
[1693863559715,1.55538963,19.313,19.292,81.68244725]
[1693863559914,192.15,19.32,19.294,0.94461036]
[1693863559915,8.076,19.316,19.294,0.94461036]
[1693863560123,4.0,19.315,19.294,81.68244725]
[1693863560302,4.0,19.318,19.296,0.94461036]
[1693863560502,4.0,19.318,19.296,55.0]
[1693863560717,4.0,19.318,19.297,25.73783689]
[1693863560906,4.0,19.318,19.299,0.82579756]
[1693863561216,12.075,19.318,19.299,0.82579756]
[1693863561420,20.0,19.317,19.299,0.82579756]
[1693863561619,12.076,19.316,19.298,55.0]
[1693863561818,4.0,19.316,19.298,55.0]
[1693863562219,24.0,19.316,19.298,55.0]
[1693863562406,32.076,19.316,19.298,55.0]
[1693863564119,24.0,19.316,19.298,55.0]
[1693863564423,4.0,19.316,19.299,45.73783689]
[1693863564627,4.0,19.319,19.3,93.43]
[1693863564923,12.074,19.321,19.301,20.0]
[1693863565407,12.074,19.321,19.302,55.0]
[1693863565605,12.074,19.321,19.303,20.0]
[1693863565923,4.0,19.321,19.304,55.0]
[1693863566116,4.0,19.321,19.305,20.0]
[1693863566332,4.0,19.321,19.306,55.0]
[1693863566712,12.074,19.321,19.307,20.0]
[1693863566922,12.074,19.321,19.308,55.0]
[1693863567714,12.074,19.321,19.308,119.167837]
[1693863570427,4.0,19.321,19.308,119.167837]
[1693863570626,8.073,19.323,19.308,119.167837]
[1693863570826,4.0,19.322,19.308,119.167837]
[1693863571420,12.073,19.322,19.308,119.167837]
[1693863593331,8.073,19.323,19.308,119.167837]
[1693863593533,12.072,19.324,19.308,119.167837]
[1693863598146,12.072,19.324,19.31,38.3]
[1693863598327,12.072,19.324,19.311,55.0]
[1693863598529,4.0,19.324,19.311,55.0]
[1693863598729,32.071,19.327,19.311,55.0]
[1693863615861,24.0,19.327,19.311,55.0]
[1693863616063,32.071,19.327,19.311,55.0]
[1693863616447,12.071,19.327,19.311,55.0]
[1693863616745,4.0,19.325,19.311,55.0]
[1693863617154,12.072,19.325,19.311,55.0]
[1693863629570,12.072,19.325,19.31,38.3]
[1693863629772,12.072,19.325,19.308,64.167837]
[1693863631454,37.80983689,19.325,19.308,64.167837]
[1693863632670,37.80983689,19.325,19.309,55.0]
[1693863634974,38.3,19.32,19.309,55.0]
[1693863635164,12.075,19.319,19.309,55.0]
[1693863635474,4.0,19.319,19.309,55.0]
[1693863636573,12.075,19.319,19.309,55.0]
[1693863641584,12.075,19.319,19.308,64.167837]
[1693863648082,4.0,19.319,19.309,55.0]
[1693863648884,12.074,19.319,19.309,55.0]
[1693863649181,4.0,19.319,19.309,55.0]
[1693863649692,8.072,19.324,19.309,55.0]
[1693863649981,4.0,19.323,19.309,55.0]
[1693863650185,8.073,19.323,19.309,55.0]
[1693863650486,4.0,19.322,19.309,55.0]
[1693863650681,4.0,19.323,19.309,55.0]
[1693863651184,12.073,19.323,19.309,55.0]
[1693863652090,4.0,19.323,19.309,55.0]
[1693863652574,4.0,19.324,19.309,55.0]
[1693863652986,4.0,19.325,19.31,38.3]
[1693863653194,4.0,19.325,19.311,55.0]
[1693863653891,12.072,19.325,19.311,55.0]
[1693863656990,4.0,19.325,19.311,55.0]
[1693863657189,38.3,19.33,19.311,55.0]
[1693863657190,4.0,19.329,19.312,20.94461036]
[1693863657502,4.0,19.329,19.313,55.0]
[1693863657679,4.0,19.329,19.314,20.0]
[1693863657884,4.0,19.329,19.315,55.0]
[1693863658086,4.0,19.329,19.316,20.0]
[1693863658284,4.0,19.329,19.317,55.0]
[1693863659382,4.0,19.329,19.317,93.3]
[1693863660595,4.0,19.334,19.317,93.3]
[1693863660980,12.068,19.334,19.317,93.3]
[1693863661487,4.0,19.334,19.317,93.3]
[1693863661993,12.069,19.334,19.317,93.3]
[1693863662381,37.80683689,19.334,19.317,93.3]
[1693863662578,4.0,19.334,19.32,38.3]
[1693863662802,4.0,19.334,19.321,75.0]
[1693863662983,4.0,19.339,19.322,0.74873637]
[1693863663183,4.0,19.339,19.321,75.0]
[1693863664596,4.0,19.339,19.321,131.4248581]
[1693863664785,4.0,19.339,19.322,56.4248581]
[1693863664987,4.0,19.339,19.323,75.0]
[1693863667296,4.0,19.339,19.323,113.3]
[1693863668093,4.0,19.343,19.324,0.94461036]
[1693863670997,4.0,19.346,19.324,0.94461036]
[1693863671302,24.0,19.346,19.33,38.3]
[1693863671504,24.0,19.346,19.331,55.0]
[1693863672005,4.0,19.346,19.331,55.0]
[1693863672501,4.0,19.346,19.331,75.681226]
[1693863673090,12.063,19.346,19.331,75.681226]
[1693863675603,4.0,19.346,19.331,75.681226]
[1693863679694,12.063,19.346,19.331,75.681226]
[1693863680011,4.0,19.346,19.332,20.0]
[1693863680302,38.3,19.35,19.332,20.0]
[1693863680303,4.0,19.349,19.332,20.0]
[1693863680508,4.0,19.349,19.333,55.0]
[1693863680695,4.0,19.349,19.334,20.0]
[1693863680897,4.0,19.349,19.335,55.0]
[1693863681096,4.0,19.349,19.336,20.0]
[1693863681297,12.062,19.349,19.337,55.0]
[1693863682101,4.0,19.349,19.337,55.0]
[1693863682611,4.0,19.349,19.337,93.3]
[1693863692610,12.062,19.349,19.337,93.3]
[1693863693102,38.109,19.349,19.337,93.3]
[1693863694403,94.959,19.349,19.337,38.3]
[1693863694605,75.0,19.348,19.327,391.5]
[1693863694802,8.064,19.343,19.32,83.03199149]
[1693863695008,4.0,19.342,19.327,20.0]
[1693863695408,4.0,19.342,19.33,38.3]
[1693863695619,4.0,19.344,19.33,38.3]
[1693863695919,4.0,19.344,19.327,46.052]
[1693863696100,24.0,19.346,19.327,46.052]
[1693863696718,24.0,19.346,19.328,55.0]
[1693863697713,8.064,19.344,19.328,55.0]
[1693863698018,4.0,19.343,19.328,55.0]
[1693863699914,12.065,19.343,19.328,55.0]
[1693863704014,4.0,19.343,19.328,55.0]
[1693863704225,4.0,19.344,19.328,55.0]
[1693863704409,38.3,19.34,19.328,55.0]
[1693863704818,8.064,19.345,19.328,55.0]
[1693863705123,8.064,19.343,19.328,55.0]
[1693863705299,2.44669716,19.342,19.328,55.0]
[1693863705715,38.3,19.34,19.328,55.0]
[1693863727033,4.0,19.348,19.329,56.42854934]
[1693863727238,24.0,19.348,19.33,55.0]
[1693863728034,8.063,19.347,19.33,55.0]
[1693863728235,24.0,19.346,19.33,55.0]
[1693863729428,4.0,19.346,19.33,119.03783689]
[1693863729729,4.0,19.349,19.331,211.55870635]
[1693863729928,4.0,19.349,19.332,55.0]
[1693863730134,4.0,19.349,19.333,105.56083068]
[1693863730434,4.0,19.349,19.334,55.0]
[1693863730623,4.0,19.349,19.335,20.0]
[1693863730823,4.0,19.349,19.336,55.0]
[1693863731334,4.0,19.349,19.337,20.0]
[1693863731542,4.0,19.349,19.338,55.0]
[1693863734135,38.3,19.35,19.338,55.0]
[1693863734518,2.57303396,19.353,19.338,55.0]
[1693863734933,3.20384735,19.354,19.338,55.0]
[1693863736237,3.29545191,19.355,19.338,55.0]
[1693863737037,11.35545191,19.355,19.338,55.0]
[1693863737737,4.0,19.356,19.338,55.0]
[1693863737929,24.0,19.356,19.338,55.0]
[1693863738835,32.059,19.356,19.338,55.0]
[1693863740530,32.059,19.356,19.337,55.0]
[1693863744550,38.3,19.35,19.337,55.0]
[1693863745235,38.3,19.35,19.336,55.0]
[1693863745422,38.3,19.35,19.337,20.0]
[1693863745621,38.3,19.35,19.338,55.0]
[1693863747241,1.52782893,19.349,19.338,55.0]
[1693863747449,46.362,19.35,19.338,55.0]
[1693863748344,38.3,19.35,19.338,55.0]
[1693863749329,1.52965231,19.349,19.338,55.0]
[1693863749645,38.3,19.35,19.338,55.0]
[1693863750039,46.362,19.35,19.338,55.0]
[1693863751139,1.62544081,19.349,19.338,55.0]
[1693863751735,38.3,19.35,19.338,55.0]
[1693863752836,1.77276633,19.349,19.338,55.0]
[1693863765564,1.59751008,19.349,19.338,55.0]
[1693863768475,38.3,19.35,19.338,55.0]
[1693863769454,1.59285455,19.349,19.338,55.0]
[1693863782778,9.65485455,19.349,19.338,55.0]
[1693863782983,8.062,19.349,19.338,55.0]
[1693863783369,1.56416316,19.348,19.338,55.0]
[1693863783573,8.062,19.349,19.338,55.0]
[1693863783981,1.72211234,19.348,19.338,55.0]
[1693863784180,9.78411234,19.348,19.338,55.0]
[1693863784487,8.062,19.348,19.338,55.0]
[1693863786775,8.062,19.349,19.338,55.0]
[1693863786975,1.74792468,19.348,19.338,55.0]
[1693863788380,2.05114185,19.349,19.338,55.0]
[1693863788778,10.11314185,19.349,19.338,55.0]
[1693863788979,2.05114185,19.349,19.338,55.0]
[1693863790682,10.11314185,19.349,19.338,55.0]
[1693863791774,2.05114185,19.349,19.338,55.0]
[1693863796379,38.3,19.35,19.338,55.0]
[1693863796788,1.54250641,19.349,19.338,55.0]
[1693863796988,38.3,19.35,19.338,55.0]
[1693863801400,46.362,19.35,19.338,55.0]
[1693863805288,1.57736765,19.349,19.338,55.0]
[1693863805602,9.63936765,19.349,19.338,55.0]
[1693863805812,8.062,19.349,19.338,55.0]
[1693863806401,1.61181385,19.348,19.338,55.0]
[1693863806787,1.61181385,19.348,19.335,38.3]
[1693863806987,1.61181385,19.348,19.336,20.0]
[1693863807199,38.3,19.35,19.336,20.0]
[1693863807400,1.9168132,19.349,19.336,20.0]
[1693863807987,1.9168132,19.349,19.337,55.0]
[1693863809809,9.9788132,19.349,19.337,55.0]
[1693863810005,8.062,19.349,19.337,55.0]
[1693863815198,8.062,19.349,19.336,20.0]
[1693863815387,1.67775308,19.348,19.336,20.0]
[1693863815591,8.063,19.347,19.336,20.0]
[1693863816495,8.063,19.348,19.336,20.0]
[1693863822610,8.062,19.349,19.336,20.0]
[1693863822904,1.59100652,19.348,19.336,20.0]
[1693863828611,57.14626819,19.349,19.336,20.0]
[1693863830706,2.14626819,19.349,19.336,20.0]
[1693863830911,2.14626819,19.349,19.337,55.0]
[1693863837010,2.14626819,19.349,19.336,20.0]
[1693863840902,2.14626819,19.349,19.337,55.0]
[1693863850318,2.14626819,19.349,19.338,20.0]
[1693863850522,46.357,19.36,19.34,38.3]
[1693863850725,4.0,19.359,19.341,60.76760415]
[1693863850919,4.0,19.359,19.342,55.0]
[1693863851223,12.058,19.359,19.343,0.94461036]
[1693863851627,12.058,19.359,19.343,20.94461036]
[1693863851826,12.058,19.359,19.344,55.0]
[1693863852129,12.058,19.359,19.345,20.0]
[1693863852430,4.0,19.359,19.345,20.0]
[1693863852814,59.0,19.359,19.345,20.0]
[1693863854223,67.058,19.359,19.345,20.0]
[1693863854813,67.058,19.359,19.345,79.822993]
[1693863856236,67.058,19.359,19.346,0.51474771]
[1693863856428,4.0,19.359,19.346,55.0]
[1693863856613,38.3,19.36,19.347,20.94461036]
[1693863856929,38.3,19.36,19.348,55.0]
[1693863857134,1.61302593,19.359,19.348,55.0]
[1693863857516,8.055,19.366,19.35,38.3]
[1693863857826,4.0,19.365,19.351,55.0]
[1693863858412,12.056,19.365,19.351,55.0]
[1693863859030,12.056,19.365,19.351,93.3]
[1693863859324,12.056,19.365,19.352,0.52639502]
[1693863860226,4.0,19.365,19.351,93.3]
[1693863860525,4.0,19.365,19.352,0.94461036]
[1693863860734,4.0,19.366,19.352,0.94461036]
[1693863861129,4.0,19.368,19.352,0.94461036]
[1693863861730,8.055,19.367,19.352,0.94461036]
[1693863861921,24.0,19.366,19.352,0.94461036]
[1693863862129,32.055,19.366,19.351,93.3]
[1693863862421,32.055,19.366,19.352,0.49745519]
[1693863862626,24.0,19.366,19.352,0.49745519]
[1693863862930,24.0,19.366,19.351,93.3]
[1693863863634,32.055,19.366,19.351,93.3]
[1693863864339,24.0,19.366,19.351,93.3]
[1693863864634,24.0,19.366,19.352,0.7884586]
[1693863864635,4.0,19.366,19.352,0.7884586]
[1693863866118,12.055,19.366,19.352,0.7884586]
[1693863867127,4.0,19.366,19.352,0.7884586]
[1693863869421,12.055,19.366,19.352,0.7884586]
[1693863870826,4.0,19.366,19.352,0.7884586]
[1693863871524,12.055,19.366,19.352,0.7884586]
[1693863871926,4.0,19.366,19.352,0.7884586]
[1693863872744,12.055,19.366,19.352,0.7884586]
[1693863874131,4.0,19.366,19.352,0.7884586]
[1693863874440,4.0,19.369,19.353,59.82299379]
[1693863874635,4.0,19.369,19.354,20.94461036]
[1693863874831,4.0,19.369,19.355,55.0]
[1693863875032,4.0,19.369,19.356,0.94461036]
[1693863875233,4.0,19.369,19.356,20.94461036]
[1693863875438,4.0,19.369,19.357,55.0]
[1693863876744,12.054,19.369,19.357,55.0]
[1693863877134,4.0,19.369,19.357,55.0]
[1693863878846,4.0,19.369,19.357,101.353]
[1693863883450,12.054,19.369,19.357,101.353]
[1693863884057,4.0,19.369,19.357,101.353]
[1693863885255,12.054,19.369,19.357,101.353]
[1693863886555,4.0,19.369,19.357,101.353]
[1693863887258,12.054,19.369,19.357,101.353]
[1693863905173,12.054,19.369,19.357,46.353]